fUSD/lending_fUSD_20251109
["ID","MTS","AMOUNT","RATE_DAILY","PERIOD"]
[393468863,1762696253870,-255.720552,0.00019,2]
[393468864,1762696253883,-156.527692,0.00019,2]
[393468865,1762696253893,-151.0,0.00019,2]
[393468866,1762696253902,-255.720552,0.00019,2]
[393468867,1762696253911,-151.0,0.00019,2]
[393468868,1762696253920,-151.0,0.00019,2]
[393468869,1762696253930,-196.104165,0.00019,2]
[393468870,1762696253938,-151.0,0.00019,2]
[393468871,1762696253948,-153.31573,0.00019,2]
[393468872,1762696253957,-151.0,0.00019,2]
[393468873,1762696253967,-1832.277529,0.00019,2]
[393468874,1762696253976,-151.0,0.00019,2]
[393468875,1762696253986,-1832.277529,0.00019,2]
[393468876,1762696253995,-151.0,0.00019,2]
[393468877,1762696254005,-197.743825,0.00019,2]
[393468878,1762696254014,-1152.77265,0.00019,2]
[393468879,1762696254024,-162.295178,0.00019,2]
[393468880,1762696254034,-1152.77265,0.00019,2]
[393468881,1762696254044,-151.0,0.00019,2]
[393468882,1762696254054,-1152.77265,0.00019,2]
[393468883,1762696254064,-1152.77265,0.00019,2]
[393468884,1762696254074,-151.0,0.00019,2]
[393468885,1762696254084,-151.0,0.00019,2]
[393468886,1762696254094,-150.0,0.00019031,2]
[393468887,1762696254103,-166.66,0.00019037,2]
[393468888,1762696254113,-420.0,0.00019037,2]
[393468889,1762696254123,-420.0,0.00019037,2]
[393468890,1762696254134,-200.0,0.00019061,2]
[393468891,1762696254144,-1098.56150961,0.00019068,2]
[393468892,1762696254155,-347.38225097,0.00019068,2]
[393468893,1762696254165,-1680.0,0.000191,2]
[393468894,1762696254176,-318.52,0.00019113,2]
[393468895,1762696254187,-235.53051942,0.0001916,2]
[393468896,1762696254197,-151.0,0.00019178,2]
[393468897,1762696254207,-151.0,0.00019178,2]
[393468898,1762696254217,-161.133918,0.00019178,2]
[393468899,1762696254227,-187.260727,0.00019178,2]
[393468900,1762696254237,-187.260727,0.00019178,2]
[393468901,1762696254247,-187.260727,0.00019178,2]
[393468902,1762696254261,-187.260727,0.00019178,2]
[393468903,1762696254272,-187.260727,0.00019178,2]
[393468904,1762696254282,-187.260727,0.00019178,2]
[393468905,1762696254292,-187.260727,0.00019178,2]
[393468906,1762696254302,-187.260727,0.00019178,2]
[393468907,1762696254312,-151.0,0.00019178,2]
[393468908,1762696254321,-151.0,0.00019178,2]
[393468909,1762696254331,-151.0,0.00019178,2]
[393468910,1762696254342,-151.0,0.00019178,2]
[393468911,1762696254352,-290.456169,0.00019178,2]
[393468912,1762696254362,-2327.89,0.00019178,2]
[393468913,1762696254372,-150.0,0.00019178,2]
[393468914,1762696254381,-359.1,0.00019268,2]
[393468915,1762696254391,-205.43,0.00019326,2]
[393468916,1762696254401,-22214.12,0.00019339,2]
[393468917,1762696254411,-9999.99,0.00019339,2]
[393468918,1762696254421,-1000.0,0.00019438,2]
[393468919,1762696254432,-500.0,0.00019534,2]
[393468920,1762696254442,-359.1,0.00019542,2]
[393468921,1762696254452,-166.66,0.00019645,2]
[393468922,1762696254462,-300.0,0.00019674,2]
[393468923,1762696254472,-250.0,0.00019726,2]
[393468924,1762696254481,-172.8,0.00019794,2]
[393468925,1762696254491,-359.12360344,0.00019816,2]
[393468926,1762696254501,-573.05258584,0.00019829,2]
[393468927,1762696254511,-4875.75949894,0.000199,3]
[393468928,1762696254520,-603.02466569,0.00019923,2]
[393468929,1762696254530,-415.55725,0.0002,2]
[393468930,1762696254539,-6814.00743005,0.0002,2]
[393468931,1762696254549,-22641.99975342,0.0002,2]
[393468932,1762696254558,-57593.22134348,0.0002,5]
[393468933,1762696254568,-8300.0,0.0002,4]
[393468934,1762696254578,-3950.0,0.0002,2]
[393468935,1762696254587,-7226.64036279,0.0002,2]
[393468936,1762696254598,-1283.33163411,0.0002,2]
[393468937,1762696254608,-7311.58635946,0.0002,2]
[393468938,1762696254618,-2172.02838569,0.0002,3]
[393468939,1762696254627,-10165.86502198,0.0002,2]
[393468940,1762696254639,-1035.85294866,0.0002,2]
[393468941,1762696254656,-2838.66526332,0.0002,2]
[393468942,1762696254665,-8733.23470703,0.0002,2]
[393468943,1762696254675,-151.0,0.0002,7]
[393468944,1762696254685,-151.0,0.0002,7]
[393468945,1762696254696,-151.0,0.0002,7]
[393468946,1762696254705,-151.0,0.0002,7]
[393468947,1762696254715,-180.760483,0.0002,7]
[393468948,1762696254724,-168.327742,0.0002,7]
[393468949,1762696254733,-151.0,0.0002,7]
[393468950,1762696254743,-168.327742,0.0002,7]
[393468951,1762696254752,-151.0,0.0002,7]
[393468952,1762696254761,-168.327742,0.0002,7]
[393468953,1762696254770,-151.0,0.0002,7]
[393468954,1762696254780,-168.327742,0.0002,7]
[393468955,1762696254789,-151.0,0.0002,7]
[393468956,1762696254798,-151.0,0.0002,7]
[393468957,1762696254807,-151.0,0.0002,7]
[393468958,1762696254817,-151.0,0.0002,7]
[393468959,1762696254827,-190.01175,0.0002,7]
[393468960,1762696254836,-151.0,0.0002,7]
[393468961,1762696254847,-151.0,0.0002,7]
[393468962,1762696254856,-670.385367,0.0002,7]
[393468963,1762696254865,-670.385367,0.0002,7]
[393468964,1762696254875,-151.0,0.0002,7]
[393468965,1762696254884,-670.385367,0.0002,7]
[393468966,1762696254893,-151.0,0.0002,7]
[393468967,1762696254903,-670.385367,0.0002,7]
[393468968,1762696254912,-151.0,0.0002,7]
[393468969,1762696254923,-151.0,0.0002,7]
[393468970,1762696254938,-151.0,0.0002,7]
[393468971,1762696254948,-156.007995,0.0002,7]
[393468972,1762696254958,-281.786286,0.0002,7]
[393468973,1762696254967,-151.0,0.0002,7]
[393468974,1762696254977,-151.0,0.0002,7]
[393468975,1762696254986,-151.0,0.0002,7]
[393468976,1762696254996,-281.786286,0.0002,7]
[393468977,1762696255006,-281.786286,0.0002,7]
[393468978,1762696255016,-281.786286,0.0002,7]
[393468979,1762696255025,-773.632945,0.0002,7]
[393468980,1762696255035,-773.632945,0.0002,7]
[393468981,1762696255046,-773.632945,0.0002,7]
[393468982,1762696255056,-151.0,0.0002,7]
[393468983,1762696255066,-160.173224,0.0002,7]
[393468984,1762696255076,-151.0,0.0002,7]
[393468985,1762696255086,-653.976254,0.0002,7]
[393468986,1762696255095,-773.632945,0.0002,7]
[393468987,1762696255105,-653.976254,0.0002,7]
[393468988,1762696255115,-653.976254,0.0002,7]
[393468989,1762696255125,-241.372738,0.0002,7]
[393468990,1762696255135,-653.976254,0.0002,7]
[393468991,1762696255144,-241.372738,0.0002,7]
[393468992,1762696255154,-151.0,0.0002,7]
[393468993,1762696255164,-649.096421,0.0002,7]
[393468994,1762696255173,-151.0,0.0002,7]
[393468995,1762696255183,-241.372738,0.0002,7]
[393468996,1762696255194,-649.096421,0.0002,7]
[393468997,1762696255204,-241.372738,0.0002,7]
[393468998,1762696255214,-176.311602,0.0002,7]
[393468999,1762696255228,-151.0,0.0002,7]
[393469000,1762696255237,-151.0,0.0002,7]
[393469001,1762696255247,-176.311602,0.0002,7]
[393469002,1762696255257,-649.096421,0.0002,7]
[393469003,1762696255266,-176.311602,0.0002,7]
[393469004,1762696255276,-649.096421,0.0002,7]
[393469005,1762696255286,-176.311602,0.0002,7]
[393469006,1762696255296,-172.277072,0.0002,7]
[393469007,1762696255305,-183.538171,0.0002,7]
[393469008,1762696255317,-170.468976,0.0002,7]
[393469009,1762696255326,-170.468976,0.0002,7]
[393469010,1762696255336,-259.568845,0.0002,7]
[393469011,1762696255345,-170.468976,0.0002,7]
[393469012,1762696255355,-170.468976,0.0002,7]
[393469013,1762696255365,-154.628871,0.0002,7]
[393469014,1762696255374,-154.628871,0.0002,7]
[393469015,1762696255384,-703.603668,0.0002,7]
[393469016,1762696255393,-703.603668,0.0002,7]
[393469017,1762696255403,-154.628871,0.0002,7]
[393469018,1762696255412,-703.603668,0.0002,7]
[393469019,1762696255422,-154.628871,0.0002,7]
[393469020,1762696255433,-703.603668,0.0002,7]
[393469021,1762696255443,-191.059476,0.0002,7]
[393469022,1762696255453,-151.0,0.0002,7]
[393469023,1762696255462,-151.0,0.0002,7]
[393469024,1762696255472,-191.059476,0.0002,7]
[393469025,1762696255481,-151.0,0.0002,7]
[393469026,1762696255491,-179.392415,0.0002,7]
[393469027,1762696255500,-355.516195,0.0002,7]
[393469028,1762696255511,-151.0,0.0002,7]
[393469029,1762696255522,-191.059476,0.0002,7]
[393469030,1762696255533,-151.0,0.0002,7]
[393469031,1762696255543,-355.516195,0.0002,7]
[393469032,1762696255552,-355.516195,0.0002,7]
[393469033,1762696255562,-355.516195,0.0002,7]
[393469034,1762696255572,-191.059476,0.0002,7]
[393469035,1762696255583,-338.9931,0.0002,7]
[393469036,1762696255596,-338.9931,0.0002,7]
[393469037,1762696255605,-156.220285,0.0002,7]
[393469038,1762696255615,-338.9931,0.0002,7]
[393469039,1762696255625,-338.9931,0.0002,7]
[393469040,1762696255635,-151.0,0.0002,7]
[393469041,1762696255644,-151.0,0.0002,7]
[393469042,1762696255657,-298.153219,0.0002,7]
[393469043,1762696255666,-298.153219,0.0002,7]
[393469044,1762696255676,-298.153219,0.0002,7]
[393469045,1762696255685,-298.153219,0.0002,7]
[393469046,1762696255695,-151.0,0.0002,7]
[393469047,1762696255704,-151.0,0.0002,7]
[393469048,1762696255714,-151.0,0.0002,7]
[393469049,1762696255723,-995.65575,0.0002,7]
[393469050,1762696255732,-151.0,0.0002,7]
[393469051,1762696255742,-151.0,0.0002,7]
[393469052,1762696255752,-995.65575,0.0002,7]
[393469053,1762696255762,-151.0,0.0002,7]
[393469054,1762696255771,-151.0,0.0002,7]
[393469055,1762696255781,-995.65575,0.0002,7]
[393469056,1762696255790,-151.0,0.0002,7]
[393469057,1762696255801,-995.65575,0.0002,7]
[393469058,1762696255811,-4532.58863,0.0002,7]
[393469059,1762696255820,-151.0,0.0002,7]
[393469060,1762696255830,-4532.58863,0.0002,7]
[393469061,1762696255843,-151.0,0.0002,7]
[393469062,1762696255852,-478.20968403,0.0002,7]
[393469063,1762696255862,-151.0,0.0002,7]
[393469064,1762696255871,-4532.58863,0.0002,7]
[393469065,1762696255880,-151.0,0.0002,7]
[393469066,1762696255889,-151.0,0.0002,7]
[393469067,1762696255899,-4532.58863,0.0002,7]
[393469068,1762696255908,-169.25657,0.0002,7]
[393469069,1762696255918,-151.0,0.0002,7]
[393469070,1762696255928,-207.502926,0.0002,7]
[393469071,1762696255938,-281.014401,0.0002,7]
[393469072,1762696255947,-157.090457,0.0002,7]
[393469073,1762696255956,-151.0,0.0002,7]
[393469074,1762696255966,-1000.0,0.0002,7]
[393469075,1762696255975,-3241.0,0.0002001,2]
[393469076,1762696255984,-9009.50151639,0.0002001,2]
[393469077,1762696255994,-500.0,0.00020027,2]
[393469078,1762696256003,-698.95,0.0002011,2]
[393469079,1762696256013,-1000.0,0.00020116,2]
[393469080,1762696256023,-393.28,0.00020169,2]
[393469081,1762696256033,-1000.0,0.00020187,2]
[393469082,1762696256043,-166.66,0.00020253,2]
[393469083,1762696256052,-353.6416507,0.00020274,2]
[393469084,1762696256062,-205.43,0.00020293,2]
[393469085,1762696256071,-155.87915395,0.00020327,2]
[393469086,1762696256081,-368.3698228,0.00020429,5]
[393469087,1762696256091,-222.73806428,0.00020494,2]
[393469088,1762696256100,-600.0,0.000205,2]
[393469089,1762696256110,-300.92372767,0.00020501,2]
[393469090,1762696256120,-235.53051942,0.00020519,2]
[393469091,1762696256129,-222.73917686,0.00020521,2]
[393469092,1762696256139,-21315.44,0.00020548,2]
[393469093,1762696256148,-151.0,0.00020548,7]
[393469094,1762696256158,-151.0,0.00020548,7]
[393469095,1762696256167,-244.49106,0.00020548,7]
[393469096,1762696256177,-223.85175349,0.00020553,2]
[393469097,1762696256186,-300.0,0.000206,2]
[393469098,1762696256196,-22458.31516154,0.000207,2]
[393469099,1762696256206,-587.0,0.00020783,2]
[393469100,1762696256215,-587.0,0.00020783,2]
[393469101,1762696256225,-1000.0,0.00020795,2]
[393469102,1762696256235,-1206.23,0.00020795,2]
[393469103,1762696256245,-300.1,0.00020795,2]
[393469104,1762696256255,-150.0,0.00020795,2]
[393469105,1762696256264,-150.0,0.00020795,2]
[393469106,1762696256274,-1206.23,0.00020795,2]
[393469107,1762696256284,-150.0,0.00020795,2]
[393469108,1762696256294,-428.02578926,0.00020795,2]
[393469109,1762696256845,-778.20421074,0.00020795,2]
[393469110,1762696256855,-1206.23,0.00020795,2]
[393469111,1762696256865,-150.0,0.00020795,2]
[393469112,1762696256875,-1206.23,0.00020795,2]
[393469113,1762696256884,-1206.23,0.00020795,2]
[393469114,1762696256894,-1206.23,0.00020795,2]
[393469115,1762696256904,-526.83451285,0.00020795,2]
[393469116,1762696256985,-210.75548715,0.00020795,2]
[393469117,1762696256995,-338.09,0.00020795,2]
[393469118,1762696257005,-151.0,0.00020814,2]
[393469119,1762696257015,-156.587,0.00020814,2]
[393469120,1762696257025,-157.8309066,0.00020814,2]
[393469121,1762696257034,-573.05258584,0.00020843,2]
[393469122,1762696257044,-166.66,0.00020862,2]
[393469123,1762696257053,-3544.534,0.00020887,2]
[393469124,1762696257063,-1316.0,0.00020887,2]
[393469125,1762696257073,-576.362,0.00020887,2]
[393469126,1762696257083,-608.0,0.00020887,2]
[393469127,1762696257093,-820.0,0.00020887,2]
[393469128,1762696257103,-1602.924,0.00020887,2]
[393469129,1762696257117,-1273.0,0.00020887,2]
[393469130,1762696257128,-813.0,0.00020887,2]
[393469131,1762696257139,-6661.0,0.00020887,2]
[393469132,1762696257150,-2142.0,0.00020887,2]
[393469133,1762696257161,-6478.0,0.00020887,2]
[393469134,1762696257171,-559.0,0.00020887,2]
[393469135,1762696257182,-151.0,0.00020887,7]
[393469136,1762696257192,-2567.176262,0.00020887,7]
[393469137,1762696257202,-153.382593,0.00020887,7]
[393469138,1762696257214,-151.0,0.00020887,7]
[393469139,1762696257224,-2567.176262,0.00020887,7]
[393469140,1762696257234,-2567.176262,0.00020887,7]
[393469141,1762696257244,-151.0,0.00020887,7]
[393469142,1762696257254,-2567.176262,0.00020887,7]
[393469143,1762696257264,-151.0,0.00020887,7]
[393469144,1762696257274,-162.201358,0.00020887,7]
[393469145,1762696257286,-151.0,0.00020887,7]
[393469146,1762696257297,-151.0,0.00020887,7]
[393469147,1762696257307,-151.0,0.00020887,7]
[393469148,1762696257318,-151.0,0.00020887,7]
[393469149,1762696257328,-151.0,0.00020887,7]
[393469150,1762696257338,-151.0,0.00020887,7]
[393469151,1762696257349,-151.0,0.00020887,7]
[393469152,1762696257359,-155.201252,0.00020887,7]
[393469153,1762696257368,-151.0,0.00020887,7]
[393469154,1762696257377,-151.0,0.00020887,7]
[393469155,1762696257386,-720.147493,0.00020887,7]
[393469156,1762696257396,-151.0,0.00020887,7]
[393469157,1762696257406,-166.784343,0.00020887,7]
[393469158,1762696257416,-720.147493,0.00020887,7]
[393469159,1762696257427,-151.0,0.00020887,7]
[393469160,1762696257437,-151.0,0.00020887,7]
[393469161,1762696257446,-158.424085,0.00020887,7]
[393469162,1762696257456,-154.559009,0.00020887,7]
[393469163,1762696257466,-166.784343,0.00020887,7]
[393469164,1762696257475,-720.147493,0.00020887,7]
[393469165,1762696257485,-166.784343,0.00020887,7]
[393469166,1762696257494,-151.0,0.00020887,7]
[393469167,1762696257503,-158.424085,0.00020887,7]
[393469168,1762696257514,-151.0,0.00020887,7]
[393469169,1762696257524,-166.784343,0.00020887,7]
[393469170,1762696257533,-255.720552,0.00020887,7]
[393469171,1762696257543,-720.147493,0.00020887,7]
[393469172,1762696257553,-158.424085,0.00020887,7]
[393469173,1762696257563,-151.0,0.00020887,7]
[393469174,1762696257573,-151.0,0.00020887,7]
[393469175,1762696257582,-255.720552,0.00020887,7]
[393469176,1762696257592,-151.0,0.00020887,7]
[393469177,1762696257602,-158.424085,0.00020887,7]
[393469178,1762696257612,-255.720552,0.00020887,7]
[393469179,1762696257621,-151.0,0.00020887,7]
[393469180,1762696257632,-255.720552,0.00020887,7]
[393469181,1762696257641,-151.0,0.00020887,7]
[393469182,1762696257653,-151.0,0.00020887,7]
[393469183,1762696257662,-151.0,0.00020887,7]
[393469184,1762696257671,-151.0,0.00020887,7]
[393469185,1762696257682,-1832.277529,0.00020887,7]
[393469186,1762696257692,-162.886951,0.00020887,7]
[393469187,1762696257702,-1832.277529,0.00020887,7]
[393469188,1762696257712,-151.0,0.00020887,7]
[393469189,1762696257722,-187.260727,0.00020887,7]
[393469190,1762696257738,-187.260727,0.00020887,7]
[393469191,1762696257748,-187.260727,0.00020887,7]
[393469192,1762696257757,-1152.77265,0.00020887,7]
[393469193,1762696257767,-187.260727,0.00020887,7]
[393469194,1762696257777,-1152.77265,0.00020887,7]
[393469195,1762696257787,-151.0,0.00020887,7]
[393469196,1762696257797,-1152.77265,0.00020887,7]
[393469197,1762696257808,-1152.77265,0.00020887,7]
[393469198,1762696257818,-151.0,0.00020887,7]
[393469199,1762696257828,-219.036736,0.00020887,7]
[393469200,1762696257839,-3098.0,0.00020887,2]
[393469201,1762696257850,-2351.0,0.00020956,2]
[393469202,1762696257860,-20000.0,0.00021,2]
[393469203,1762696257870,-350.0,0.00021,2]
[393469204,1762696257879,-17793.80478939,0.00021,2]
[393469205,1762696325713,150.65,0.00018,7]
[393469208,1762696515729,150.0,0.00018,7]
[393469210,1762696671557,150.79,0.00010124,2]
[393469211,1762696671791,150.79,0.00011097,2]
[393469212,1762696672007,150.79,0.0001207,2]
[393469213,1762696672226,150.79,0.00013042,2]
[393469214,1762696672786,150.79,0.00014015,2]
[393469215,1762696672959,150.79,0.00014988,2]
[393469216,1762696706949,150.0,0.00018,7]
[393469217,1762696896720,150.0,0.00018,7]
[393469218,1762697085851,150.0,0.00018,7]
[393469219,1762697109105,366.52055606,0.00018355,7]
[393469221,1762697274868,150.0,0.000181,7]
[393469255,1762697431922,-3000.99828664,0.00015952,2]
[393469257,1762697431933,-150.79,0.0001596,2]
[393469259,1762697431943,-250.0,0.00016052,2]
[393469261,1762697431952,-326.259078,0.00016625,2]
[393469263,1762697431962,-175.40842315,0.00016802,2]
[393469265,1762697431971,-300.0,0.00016902,2]
[393469267,1762697431981,-300.0,0.00016902,2]
[393469269,1762697431991,-1200.0,0.00016902,2]
[393469271,1762697432006,-9399.49446638,0.00016903,2]
[393469274,1762697432025,-646.62018074,0.00016903,2]
[393469276,1762697432036,-2730.93535288,0.00016903,2]
[393469277,1762697432046,-150.79,0.00016933,2]
[393469278,1762697432056,-250.0,0.00017,2]
[393469279,1762697432066,-1128.96,0.00017014,2]
[393469280,1762697432075,-250.0,0.00017547,2]
[393469281,1762697432086,-299.25,0.00017556,2]
[393469282,1762697432095,-300.0,0.00017556,2]
[393469283,1762697432105,-300.0,0.00017556,2]
[393469284,1762697432115,-195.0,0.00017556,2]
[393469285,1762697432125,-300.0,0.00017556,2]
[393469286,1762697432134,-300.0,0.00017556,2]
[393469287,1762697432144,-250.0,0.00017556,2]
[393469288,1762697432154,-300.0,0.00017556,2]
[393469289,1762697432163,-195.0,0.00017556,2]
[393469290,1762697432173,-399.0,0.00017563,2]
[393469291,1762697432182,-550.0,0.00017672,2]
[393469292,1762697432191,-164.87136363,0.00017673,2]
[393469293,1762697432202,-175.40842314,0.00017673,2]
[393469294,1762697432212,-286.52629292,0.00017673,2]
[393469295,1762697432221,-1725.0244851,0.00017718,2]
[393469296,1762697432232,-163.36,0.00017723,2]
[393469297,1762697432242,-500.0,0.00017729,2]
[393469298,1762697432251,-500.0,0.00017729,2]
[393469299,1762697432261,-500.0,0.00017729,2]
[393469300,1762697432271,-500.0,0.00017729,2]
[393469301,1762697432281,-500.0,0.00017729,2]
[393469302,1762697432291,-154.88640384,0.00017729,2]
[393469303,1762697432300,-500.0,0.00017729,2]
[393469304,1762697432310,-500.0,0.00017729,2]
[393469305,1762697432319,-432.19024501,0.00017729,2]
[393469344,1762697432664,-206.17112995,0.00017729,2]
[393469346,1762697432674,-182.64802243,0.00017732,2]
[393469352,1762697432732,-8.89329214,0.00017732,2]
[393469354,1762697432742,-791.10670786,0.00017733,2]
[393469356,1762697432753,-1993.96720213,0.00017733,2]
[393469359,1762697432765,-1295.31452208,0.00017733,2]
[393469361,1762697432776,-1016.8396099,0.00017733,2]
[393469363,1762697432787,-6354.11742395,0.00017733,2]
[393469546,1762697437932,-348.70681944,0.00017732,2]
[393469547,1762697437942,-26376.30854105,0.00017733,2]
[393469548,1762697437998,-5552.51701183,0.00017733,2]
[393469549,1762697438133,-500.99999993,0.00017733,2]
[393469595,1762697439952,-800.49634291,0.00017733,2]
[393469596,1762697439964,-1363.68834929,0.00017733,2]
[393469597,1762697439977,-12156.66299729,0.00017733,2]
[393469598,1762697439989,-3829.98099585,0.00017733,2]
[393469599,1762697440002,-11225.73384333,0.00017733,2]
[393469600,1762697440019,-688.08542945,0.00017733,2]
[393469601,1762697440031,-3547.5,0.00017733,2]
[393469602,1762697440087,-512.20800017,0.00017733,2]
[393469603,1762697440123,-3795.33614685,0.00017733,2]
[393469604,1762697440135,-23663.27709268,0.00017733,2]
[393469605,1762697440147,-9506.78639084,0.00017733,2]
[393469606,1762697440163,-298.51436949,0.00017733,2]
[393469607,1762697440227,-11430.0,0.00017733,2]
[393469608,1762697440273,-543.74,0.00017733,2]
[393469631,1762697443071,-3123.22869836,0.00017733,2]
[393469632,1762697443082,-500.89676977,0.00017733,2]
[393469633,1762697443123,-11774.71006907,0.00017733,2]
[393469634,1762697443134,-7436.56215345,0.00017733,2]
[393469635,1762697443238,-265.58581123,0.00017733,2]
[393469678,1762697446076,-1408.90569754,0.00017733,2]
[393469679,1762697446090,-330.1908345,0.00017733,2]
[393469681,1762697446365,-1135.93436383,0.00017733,2]
[393469682,1762697446376,-1280.0,0.00017733,2]
[393469683,1762697446386,-6929.12220011,0.00017733,2]
[393469684,1762697446432,-14067.86480158,0.00017733,2]
[393469685,1762697446443,-1383.22654708,0.00017733,2]
[393469686,1762697446492,-373.96952708,0.00017733,2]
[393469687,1762697446503,-736.64384478,0.00017733,2]
[393469688,1762697446514,-1080.12898,0.00017733,2]
[393469704,1762697453507,219.91233364,0.00018345,7]
[393469705,1762697460273,1040.93099999,0.00017905,5]
[393469706,1762697464765,150.0,0.000181,7]
[393469708,1762697652477,1212.10793153,0.00019,5]
[393469709,1762697652904,150.0,0.000183,7]
[393469710,1762697841705,150.0,0.000184,7]
[393469714,1762698028690,155.92,0.000184,7]
[393469717,1762698377115,5516.0,0.000166,5]
[393469718,1762698409413,4304.0,0.000166,5]
[393469744,1762698562455,177.71,0.00024999,120]
[393469745,1762698568179,972.74,0.00013699,2]
[393469747,1762698581109,-178.71183676,0.00015286,2]
[393469748,1762698583160,321.68130617,0.00015286,2]
[393469749,1762698586068,571.30599976,0.00015286,2]
[393469776,1762698632158,-250.0,0.00016402,2]
[393469777,1762698632169,-177.71,0.00016666,2]
[393469778,1762698632178,-194.01,0.00016712,2]
[393469779,1762698632188,-250.0,0.00016829,2]
[393469780,1762698632201,-200.0,0.0001693,2]
[393469781,1762698632211,-250.0,0.00017,2]
[393469782,1762698632221,-302.45582,0.00017,2]
[393469783,1762698632233,-470.94702833,0.00017,2]
[393469784,1762698632242,-160.0,0.00017,2]
[393469785,1762698632252,-367.07,0.0001706,2]
[393469786,1762698632263,-154.07,0.0001706,2]
[393469787,1762698632273,-214.19015976,0.00017286,2]
[393469788,1762698632283,-1200.0,0.00017311,2]
[393469789,1762698632293,-1726.84557519,0.00017312,2]
[393469790,1762698632303,-21441.36946991,0.00017417,2]
[393469791,1762698632317,-5305.63053009,0.00017417,2]
[393469792,1762698632326,-166.66,0.00017507,2]
[393469793,1762698632337,-300.0,0.00017532,2]
[393469794,1762698632347,-300.0,0.00017532,2]
[393469795,1762698632357,-2500.0,0.00017533,2]
[393469796,1762698632367,-1000.0,0.00017533,2]
[393469797,1762698632377,-5926.7548,0.00017533,2]
[393469798,1762698632391,-550.0,0.00017632,2]
[393469799,1762698632401,-274.48223784,0.00017633,2]
[393469800,1762698632413,-164.87136359,0.00017633,2]
[393469801,1762698632423,-8856.84409214,0.00017633,2]
[393469802,1762698632434,-11749.70486243,0.00017633,2]
[393469803,1762698632464,-155649.87789301,0.00017633,2]
[393469804,1762698632476,-924.324981,0.00017633,2]
[393469805,1762698632499,-414.68,0.00017633,2]
[393469806,1762698632510,-271.54991355,0.00017633,2]
[393469807,1762698632521,-572.77289877,0.00017633,2]
[393469815,1762698632605,-1109.24461104,0.00017633,2]
[393469816,1762698632627,-3669.27502503,0.00017633,2]
[393469817,1762698632639,-606.48713533,0.00017633,2]
[393469818,1762698632652,-1323.62141765,0.00017633,2]
[393469819,1762698632664,-1009.87494404,0.00017633,2]
[393469820,1762698632675,-501.82068701,0.00017633,2]
[393469829,1762698638135,-21762.41950126,0.00017633,2]
[393469832,1762698638149,-750.51407599,0.00017633,2]
[393469833,1762698638180,-3816.67845389,0.00017633,2]
[393469834,1762698638192,-1000.0,0.00017633,2]
[393469835,1762698638210,-744.32154611,0.00017663,2]
[393469836,1762698638335,-1440.46167349,0.00017663,2]
[393469837,1762698638348,-631.50077164,0.00017663,2]
[393469838,1762698638383,-6040.56010084,0.00017663,2]
[393469839,1762698638397,-164.87136359,0.00017667,2]
[393469840,1762698638407,-274.48223784,0.00017671,2]
[393469841,1762698638417,-500.0,0.00017673,2]
[393469842,1762698638428,-8856.84409208,0.00017693,2]